bitfinex-derivatives/quotes_SOLF0:USTF0_20240920
["timestamp","ask_amount","ask_price","bid_price","bid_amount"]
[1726832395622,3.3241,150.39,150.38,10.21]
[1726832396116,3.3241,150.39,150.38,13.61471436]
[1726832400432,1.2863,150.44,150.38,13.61471436]
[1726832400737,10.21,150.49,150.43,10.21]
[1726832400937,1.3481,150.52,150.47,10.21]
[1726832401229,10.21,150.51,150.47,10.21]
[1726832401629,1.3481,150.52,150.47,10.21]
[1726832401630,11.5581,150.52,150.47,10.21]
[1726832401836,1.3481,150.52,150.48,10.21]
[1726832402133,2.6451,150.54,150.49,10.21]
[1726832402334,3.3217,150.51,150.49,10.21]
[1726832402536,2.6451,150.54,150.5,10.21]
[1726832402739,3.3215,150.52,150.5,13.50131872]
[1726832403040,2.6451,150.54,150.5,13.50131872]
[1726832403432,3.3215,150.51,150.5,13.50131872]
[1726832404029,3.3215,150.51,150.5,3.29131872]
[1726832404239,3.3214,150.52,150.48,19.2821]
[1726832404740,3.3214,150.52,150.48,22.63802555]
[1726832406944,3.3215,150.51,150.48,22.63802555]
[1726832407146,3.3215,150.51,150.48,19.31592555]
[1726832407939,3.3215,150.51,150.48,22.63802555]
[1726832408541,3.3219,150.49,150.48,3.35592555]
[1726832408744,3.3219,150.49,150.46,15.96]
[1726832408939,2.6451,150.54,150.46,15.96]
[1726832409138,2.6451,150.54,150.47,3.25977768]
[1726832409340,18.6051,150.54,150.47,3.25977768]
[1726832409635,1.3914,150.53,150.44,15.96]
[1726832410241,3.3223,150.48,150.44,15.96]
[1726832410440,3.3223,150.48,150.45,3.3228]
[1726832411648,3.3224,150.47,150.45,3.3228]
[1726832412146,3.3221,150.49,150.46,15.96]
[1726832412341,3.3221,150.49,150.46,19.31149943]
[1726832412548,3.3221,150.49,150.46,22.63399943]
[1726832414549,3.3222,150.48,150.46,19.31149943]
[1726832414747,1.3914,150.53,150.46,3.35149943]
[1726832415049,1.3914,150.53,150.39,4.135]
[1726832415248,1.3914,150.53,150.4,15.96]
[1726832415249,15.96,150.49,150.4,15.96]
[1726832415441,3.3235,150.42,150.4,15.96]
[1726832415643,2.6564,150.48,150.4,15.96]
[1726832416548,3.3237,150.41,150.4,15.96]
[1726832417345,9.3011,150.48,150.38,152.30471436]
[1726832417346,15.96,150.47,150.38,152.30471436]
[1726832418053,3.3241,150.39,150.38,152.30471436]
[1726832422854,22.605,150.47,150.38,152.30471436]
[1726832423050,6.645,150.47,150.4,15.96]
[1726832424558,3.3237,150.41,150.4,15.96]
[1726832425953,3.324,150.4,150.38,136.34471436]
[1726832426154,3.324,150.4,150.39,10.21]
[1726832431256,3.3241,150.39,150.38,3.40471436]
[1726832431460,10.21,150.42,150.37,10.21]
[1726832431664,3.3244,150.38,150.37,13.53779078]
[1726832433758,7.9716,150.47,150.37,13.53779078]
[1726832433759,10.21,150.45,150.37,13.53779078]
[1726832433966,10.21,150.45,150.41,10.21]
[1726832434467,3.3235,150.42,150.41,10.21]
[1726832434667,1.3266,150.47,150.42,10.21]
[1726832434855,1.3266,150.47,150.44,10.21]
[1726832435059,3.3242,150.39,150.37,3.32779078]
[1726832435265,3.3242,150.39,150.38,10.21]
[1726832435469,3.3242,150.39,150.38,13.50863917]
[1726832438269,3.3248,150.36,150.35,132.98]
[1726832438469,3.3248,150.36,150.35,143.19]
[1726832439158,3.3248,150.36,150.35,10.21]
[1726832440763,10.21,150.39,150.33,10.21]
[1726832441464,3.3252,150.34,150.33,10.21]
[1726832441670,10.21,150.38,150.33,10.21]
[1726832442468,1.3795,150.4,150.33,10.21]
[1726832442659,3.3252,150.34,150.33,10.21]
[1726832442866,10.21,150.37,150.32,10.21]
[1726832443164,3.3255,150.33,150.32,10.21]
[1726832450073,1.3795,150.4,150.32,10.21]
[1726832450271,11.5895,150.4,150.35,10.21]
[1726832450574,3.3248,150.36,150.35,10.21]
[1726832451974,10.21,150.38,150.34,10.21]
[1726832452876,3.325,150.35,150.34,10.21]
[1726832458979,1.3795,150.4,150.35,3.325]
[1726832459182,1.3903,150.41,150.37,10.21]
[1726832459381,1.3903,150.41,150.37,13.52492674]
[1726832459382,3.3246,150.38,150.37,13.52492674]
[1726832459878,3.3246,150.38,150.37,3.31492674]
[1726832460079,3.3246,150.37,150.36,10.21]
[1726832460281,3.3246,150.37,150.36,13.45474316]
[1726832461286,3.3246,150.37,150.36,3.24474316]
[1726832461479,3.3249,150.36,150.35,10.21]
[1726832461888,3.325,150.35,150.33,3.3253]
[1726832462083,3.325,150.35,150.34,10.21]
[1726832462978,3.3255,150.33,150.29,134.3239]
[1726832463186,3.3255,150.33,150.32,10.21]
[1726832463485,3.326,150.31,150.29,134.3239]
[1726832463788,3.326,150.31,150.3,10.21]
[1726832464488,3.3258,150.32,150.3,10.21]
[1726832464987,3.3258,150.32,150.31,10.21]
[1726832465186,3.3256,150.33,150.31,10.21]
[1726832465387,1.3903,150.41,150.32,10.21]
[1726832465587,10.21,150.39,150.35,10.21]
[1726832466089,3.3248,150.36,150.35,10.21]
[1726832467091,3.3248,150.36,150.29,134.3239]
[1726832467092,10.21,150.38,150.33,10.21]
[1726832467491,10.21,150.37,150.32,10.21]
[1726832467984,10.21,150.35,150.3,10.21]
[1726832468587,10.21,150.37,150.33,10.21]
[1726832468785,10.21,150.39,150.34,10.21]
[1726832469092,1.3903,150.41,150.36,10.21]
[1726832469388,11.6003,150.41,150.37,10.21]
[1726832469686,3.3246,150.37,150.36,13.60076492]
[1726832469890,11.6003,150.41,150.36,13.60076492]
[1726832470486,3.3246,150.37,150.36,13.60076492]
[1726832471594,3.3246,150.37,150.36,10.21]
[1726832471989,3.3246,150.37,150.36,13.47758618]
[1726832473089,10.21,150.39,150.34,10.21]
[1726832473291,10.21,150.38,150.29,133.04]
[1726832473690,10.21,150.38,150.33,10.21]
[1726832474597,10.21,150.4,150.35,10.21]
[1726832474985,3.3249,150.36,150.35,10.21]
[1726832480403,10.21,150.39,150.32,3.3256]
[1726832480608,10.21,150.39,150.34,10.21]
[1726832481104,3.325,150.35,150.34,10.21]
[1726832481503,10.21,150.39,150.34,10.21]
[1726832481910,3.325,150.35,150.34,10.21]
[1726832483313,1.3903,150.41,150.34,10.21]
[1726832483609,1.3903,150.41,150.38,10.21]
[1726832484907,3.3241,150.39,150.38,10.21]
[1726832485905,98.12323796,150.47,150.38,10.21]
[1726832486108,98.12323796,150.47,150.44,10.21]
[1726832486408,3.3228,150.45,150.44,10.21]
[1726832488018,3.323,150.44,150.43,3.37645336]
[1726832488218,15.95,150.5,150.41,15.95]
[1726832488517,15.95,150.5,150.41,19.33209293]
[1726832488707,3.3235,150.42,150.41,19.33209293]
[1726832490214,3.3235,150.42,150.41,3.38209293]
[1726832490420,3.3238,150.41,150.39,15.95]
[1726832490724,15.95,150.46,150.4,3.3251312]
[1726832491017,3.3241,150.39,150.38,133.04]
[1726832491214,3.3241,150.39,150.38,136.3259025]
[1726832491915,4.0593,150.45,150.38,139.6503025]
[1726832491916,3.3233,150.43,150.38,139.6503025]
[1726832492121,4.0593,150.45,150.39,15.95]
[1726832492518,3.3238,150.41,150.39,19.274]
[1726832493118,4.0593,150.45,150.39,15.95]
[1726832493324,1.286,150.45,150.41,15.95]
[1726832493623,3.3229,150.45,150.43,15.95]
[1726832493823,3.3229,150.45,150.43,19.23612657]
[1726832495425,20.0586,150.51,150.43,22.55922657]
[1726832495925,3.3227,150.46,150.43,22.55922657]
[1726832496427,20.0586,150.51,150.43,19.23612657]
[1726832496720,3.323,150.45,150.43,19.23612657]
[1726832497220,3.3226,150.47,150.43,19.23612657]
[1726832497424,3.3226,150.47,150.45,15.95]
[1726832497618,3.3226,150.47,150.45,19.2728]
[1726832497825,3.3226,150.47,150.45,22.60147783]
[1726832498624,3.3226,150.47,150.45,19.27867783]
[1726832498820,4.1086,150.51,150.45,19.27867783]
[1726832499024,4.1086,150.51,150.45,3.32867783]
[1726832499225,3.3226,150.46,150.45,3.32867783]
[1726832500227,4.1086,150.51,150.45,3.32867783]
[1726832500529,4.1086,150.51,150.43,15.95]
[1726832501028,3.3225,150.47,150.44,3.3229]
[1726832501234,3.3225,150.47,150.45,15.95]
[1726832502329,4.1086,150.51,150.45,15.95]
[1726832502528,4.1086,150.51,150.43,19.29984116]
[1726832502729,4.1086,150.51,150.43,15.95]
[1726832503027,3.3228,150.46,150.43,15.95]
[1726832503333,3.3228,150.46,150.43,22.67456184]
[1726832503527,3.3228,150.46,150.43,19.35136184]
[1726832504728,3.3228,150.45,150.43,22.67446184]
[1726832504931,4.1086,150.51,150.43,22.67446184]
[1726832505333,3.3227,150.46,150.43,22.67446184]
[1726832507336,3.3225,150.47,150.43,19.35136184]
[1726832507534,15.95,150.54,150.45,15.95]
[1726832507938,3.3219,150.5,150.47,3.3222]
[1726832508135,15.95,150.54,150.47,3.3222]
[1726832508334,15.95,150.54,150.45,15.95]
[1726832508534,15.95,150.54,150.45,19.22804461]
[1726832508841,15.95,150.54,150.45,22.55074461]
[1726832509338,3.3223,150.48,150.46,3.3226]
[1726832509939,3.3223,150.48,150.47,10.2]
[1726832510140,3.322,150.49,150.47,10.2]
[1726832510840,3.3222,150.48,150.47,10.2]
[1726832511938,3.3224,150.47,150.45,13.47804461]
[1726832512132,3.3224,150.47,150.45,10.2]
[1726832512738,3.3224,150.47,150.46,3.24836222]
[1726832513141,3.3224,150.47,150.45,10.2]
[1726832513736,3.3224,150.47,150.45,13.44758861]
[1726832513936,3.3223,150.48,150.46,10.2]
[1726832514137,3.3223,150.48,150.47,10.2]
[1726832514745,3.322,150.49,150.47,10.2]
[1726832514947,2.642,150.55,150.47,10.2]
[1726832515236,10.2,150.52,150.47,10.2]
[1726832515442,10.2,150.52,150.47,13.5771997]
[1726832515839,3.3222,150.48,150.47,3.3771997]
[1726832516040,10.2,150.51,150.46,10.2]
[1726832516537,10.2,150.51,150.47,3.33377547]
[1726832516943,3.3222,150.48,150.47,3.33377547]
[1726832517240,10.2,150.51,150.46,10.2]
[1726832517743,3.3224,150.47,150.46,10.2]
[1726832518134,3.3224,150.47,150.45,16.92470666]
[1726832520043,3.3223,150.48,150.45,16.92470666]
[1726832520244,3.3223,150.48,150.46,13.5226]
[1726832520539,3.3223,150.48,150.46,10.2]
[1726832522540,3.3223,150.48,150.46,13.5226]
[1726832522745,3.3221,150.49,150.46,13.5226]
[1726832522945,3.3221,150.49,150.48,10.2]
[1726832526141,3.3218,150.5,150.48,10.2]
[1726832526341,12.842,150.55,150.5,10.2]
[1726832527346,3.3216,150.51,150.42,132.94]
[1726832527542,3.3216,150.51,150.5,10.2]
[1726832529948,10.2,150.53,150.47,10.2]
[1726832530243,3.3226,150.47,150.42,136.32727693]
[1726832530446,3.3226,150.47,150.46,10.2]
[1726832530949,3.3222,150.48,150.46,10.2]
[1726832531650,3.3221,150.49,150.47,10.2]
[1726832532243,3.3221,150.49,150.47,13.5222]
[1726832533442,2.642,150.55,150.48,10.2]
[1726832533643,1.3188,150.59,150.53,10.2]
[1726832533850,11.5188,150.59,150.53,10.2]
[1726832534052,10.2,150.57,150.53,10.2]
[1726832534846,3.3209,150.54,150.53,10.2]
[1726832536658,3.321,150.53,150.52,13.45435132]
[1726832540259,3.321,150.53,150.52,3.25435132]
[1726832540457,3.3213,150.52,150.51,10.2]
[1726832541056,3.3213,150.52,150.51,13.54196836]
[1726832541460,3.3211,150.53,150.51,13.54196836]
[1726832541657,3.3211,150.53,150.52,10.2]
[1726832541852,10.2,150.56,150.52,10.2]
[1726832542051,1.3188,150.59,150.52,10.2]
[1726832542052,10.2,150.57,150.53,3.33997514]
[1726832542858,3.3208,150.54,150.53,3.33997514]
[1726832543558,10.2,150.55,150.5,10.2]
[1726832543762,10.2,150.55,150.5,13.54363157]
[1726832543957,3.3214,150.52,150.5,13.54363157]
[1726832544357,10.2,150.55,150.5,13.54363157]
[1726832544762,1.3188,150.59,150.52,10.2]
[1726832544959,10.2,150.57,150.52,10.2]
[1726832545158,3.3212,150.53,150.52,10.2]
[1726832546362,10.2,150.54,150.5,3.34363157]
[1726832546572,10.2,150.54,150.49,11.5377]
[1726832546866,3.3217,150.51,150.49,11.5377]
[1726832547064,3.3217,150.51,150.5,10.2]
[1726832547272,3.3217,150.51,150.5,13.59546052]
[1726832548259,10.2,150.55,150.5,13.59546052]
[1726832548766,3.3215,150.51,150.5,13.59546052]
[1726832549166,3.3215,150.51,150.5,3.39546052]
[1726832549368,3.3217,150.5,150.49,10.2]
[1726832551160,10.2,150.5,150.45,10.2]
[1726832551563,6.6429,150.52,150.43,134.2984]
[1726832551761,10.2,150.48,150.43,144.4984]
[1726832552165,3.323,150.45,150.43,144.4984]
[1726832552773,3.323,150.45,150.44,10.2]
[1726832552973,6.6429,150.52,150.44,10.2]
[1726832553165,1.2872,150.53,150.49,10.2]
[1726832553369,10.2,150.54,150.49,10.2]
[1726832553974,10.2,150.54,150.49,13.53022937]
[1726832554378,3.3217,150.5,150.49,13.53022937]
[1726832554574,3.3217,150.5,150.49,10.2]
[1726832554877,3.3216,150.51,150.49,10.2]
[1726832555072,6.6392,150.6,150.49,10.2]
[1726832555278,10.2,150.59,150.54,10.2]
[1726832555874,3.3209,150.54,150.51,19.2714]
[1726832557081,3.321,150.53,150.52,3.29944407]
[1726832557273,15.95,150.59,150.5,1.3323]
[1726832557674,15.95,150.59,150.5,4.6626421]
[1726832558076,3.3212,150.53,150.5,7.9842421]
[1726832558281,3.3212,150.53,150.5,4.6626421]
[1726832558583,15.95,150.59,150.5,4.6626421]
[1726832560579,3.3214,150.52,150.5,4.6626421]
[1726832561892,3.3211,150.53,150.5,7.9843421]
[1726832563396,3.3213,150.52,150.5,4.6626421]
[1726832564087,3.8802,150.6,150.5,4.6626421]
[1726832564287,3.8802,150.6,150.53,15.95]
[1726832564690,1.3421,150.6,150.53,15.95]
[1726832565200,3.3208,150.55,150.53,15.95]
[1726832565391,1.3421,150.6,150.53,15.95]
[1726832565789,1.3421,150.6,150.51,132.9]
[1726832565989,2.6447,150.59,150.51,132.9]
[1726832566295,15.95,150.58,150.51,132.9]
[1726832566897,3.3213,150.52,150.51,132.9]
[1726832570000,3.3213,150.52,150.5,19.2803421]
[1726832570598,25.2343,150.59,150.5,22.6020421]
[1726832570798,3.3211,150.53,150.5,22.6020421]
[1726832571095,3.3211,150.53,150.52,15.95]
[1726832571898,3.3211,150.53,150.52,19.30625312]
[1726832575907,3.3208,150.55,150.52,22.62755312]
[1726832576109,3.3208,150.55,150.54,15.95]
[1726832576401,1.3421,150.6,150.54,15.95]
[1726832576606,3.3203,150.57,150.56,15.95]
[1726832577309,3.3203,150.57,150.56,19.26638815]
[1726832578309,3.32,150.58,150.56,19.26638815]
[1726832579509,3.3202,150.57,150.56,19.26638815]
[1726832580305,1.3835,150.64,150.56,19.26638815]
[1726832580811,17.3335,150.64,150.56,19.26638815]
[1726832581811,3.3202,150.57,150.56,19.26638815]
[1726832582109,3.3202,150.57,150.56,3.31638815]
[1726832582303,17.3335,150.64,150.55,15.95]
[1726832582505,3.3204,150.56,150.55,15.95]
[1726832582705,3.3204,150.56,150.55,19.1965364]
[1726832584204,3.3202,150.57,150.55,19.1965364]
[1726832584514,3.3202,150.57,150.56,15.95]
[1726832584707,1.3835,150.64,150.56,15.95]
[1726832584910,1.3835,150.64,150.59,15.95]
[1726832585813,3.3195,150.6,150.59,15.95]
[1726832591622,3.3192,150.62,150.59,19.2697]
[1726832591924,1.3351,150.65,150.61,10.2]
[1726832592324,3.3191,150.62,150.59,3.3197]
[1726832592524,3.3191,150.62,150.61,10.2]
[1726832593431,3.319,150.63,150.61,10.2]
[1726832593619,9.3607,150.68,150.6,3.3195]
[1726832593822,9.3607,150.68,150.65,10.2]
[1726832594022,9.3607,150.68,150.63,15.93]
[1726832594220,9.3607,150.68,150.63,19.29676619]
[1726832594422,3.3186,150.64,150.63,19.29676619]
[1726832597328,3.3185,150.65,150.63,19.29676619]
[1726832597725,1.3265,150.72,150.63,19.29676619]
[1726832597928,1.3265,150.72,150.68,15.93]
[1726832598128,1.3527,150.74,150.7,15.93]
[1726832598331,3.317,150.72,150.7,15.93]
[1726832599125,3.3166,150.74,150.7,15.93]
[1726832599329,9.3012,150.8,150.72,15.93]
[1726832599629,1.2634,150.79,150.72,15.93]
[1726832599831,3.3165,150.74,150.72,15.93]
[1726832600031,1.2634,150.79,150.72,15.93]
[1726832600232,1.2634,150.79,150.74,15.93]
[1726832600823,1.2634,150.79,150.76,15.93]
[1726832601029,3.3167,150.73,150.67,20.50018177]
[1726832601333,3.3167,150.73,150.72,15.93]
[1726832601524,1.2634,150.79,150.67,4.57018177]
[1726832601730,15.93,150.78,150.69,15.93]
[1726832601931,17.2651,150.78,150.69,15.93]
[1726832602735,3.3173,150.7,150.69,15.93]
[1726832603031,7.9664,150.78,150.69,15.93]
[1726832603227,7.9664,150.78,150.7,15.93]
[1726832603427,1.3351,150.78,150.7,15.93]
[1726832603631,3.317,150.72,150.7,15.93]
[1726832604033,1.2634,150.79,150.7,15.93]
[1726832604229,3.316,150.76,150.75,15.93]
[1726832604733,1.2634,150.79,150.73,15.93]
[1726832605329,3.3164,150.74,150.73,15.93]
[1726832606133,3.3171,150.72,150.71,15.93]
[1726832608839,3.3173,150.7,150.69,15.93]
[1726832609538,3.3173,150.7,150.69,19.27107187]
[1726832609935,3.3173,150.7,150.69,3.34107187]
[1726832610233,3.3175,150.69,150.68,15.93]
[1726832610433,3.3175,150.69,150.68,19.29728286]
[1726832610634,3.318,150.67,150.66,148.75]
[1726832611536,3.318,150.67,150.66,15.93]
[1726832612243,3.3178,150.68,150.66,15.93]
[1726832612442,3.3178,150.68,150.67,15.93]
[1726832612839,3.3176,150.69,150.67,15.93]
[1726832613035,3.3176,150.69,150.68,15.93]
[1726832613238,1.3504,150.73,150.68,15.93]
[1726832613436,3.3175,150.69,150.68,15.93]
[1726832616242,3.3175,150.69,150.67,3.27304414]
[1726832616243,3.3177,150.68,150.67,15.93]
[1726832616441,1.3504,150.73,150.65,3.3778073]
[1726832616648,3.3182,150.66,150.65,3.3778073]
[1726832617050,1.3504,150.73,150.64,15.93]
[1726832617240,3.3184,150.65,150.64,15.93]
[1726832617443,17.2804,150.73,150.62,148.67]
[1726832618247,6.6339,150.72,150.62,148.67]
[1726832618849,3.3187,150.64,150.62,148.67]
[1726832619448,3.3187,150.64,150.63,3.29195153]
[1726832619651,3.3185,150.65,150.63,3.29195153]
[1726832619851,6.6339,150.72,150.64,15.93]
[1726832620151,3.3184,150.65,150.64,19.25547513]
[1726832621446,3.3188,150.64,150.62,148.67]
[1726832621855,6.6339,150.72,150.62,148.67]
[1726832622149,15.93,150.71,150.62,132.74]
[1726832622349,1.3504,150.73,150.62,132.74]
[1726832622552,3.3188,150.63,150.62,132.74]
[1726832622850,15.93,150.66,150.58,15.93]
[1726832623053,15.93,150.66,150.53,134.0741]
[1726832623054,15.93,150.64,150.56,17.3305]
[1726832623554,15.93,150.64,150.56,15.93]
[1726832623752,3.3202,150.57,150.56,15.93]
[1726832624757,15.93,150.64,150.56,15.93]
[1726832625150,3.3202,150.57,150.56,15.93]
[1726832625943,3.3206,150.55,150.54,19.31935079]
[1726832626144,15.93,150.61,150.53,132.76]
[1726832626350,1.3037,150.6,150.53,132.76]
[1726832626757,3.3208,150.54,150.53,132.76]
[1726832627250,15.93,150.54,150.38,229.0]
[1726832627547,15.93,150.54,150.45,15.93]
[1726832627749,15.93,150.54,150.46,3.27727644]
[1726832628354,3.3223,150.48,150.45,15.93]
[1726832628756,3.3223,150.48,150.46,3.25068865]
[1726832630553,3.322,150.49,150.47,15.93]
[1726832631458,3.3222,150.48,150.47,15.93]
[1726832632057,3.3221,150.49,150.47,15.93]
[1726832633457,15.93,150.57,150.47,15.93]
[1726832634059,3.3221,150.49,150.47,15.93]
[1726832634961,1.3742,150.58,150.47,15.93]
[1726832635156,1.3742,150.58,150.51,15.93]
[1726832636164,1.3742,150.58,150.49,15.93]
[1726832636464,1.3742,150.58,150.46,4.52518865]
[1726832636465,3.3221,150.49,150.47,15.93]
[1726832636759,15.93,150.55,150.47,15.93]
[1726832637153,15.93,150.55,150.45,15.93]
[1726832637363,15.93,150.53,150.45,19.26200212]
[1726832637663,3.3226,150.46,150.45,19.26200212]
[1726832638065,3.3226,150.46,150.45,3.33200212]
[1726832638365,3.3228,150.45,150.43,17.2709]
[1726832638863,3.3228,150.45,150.43,20.58894679]
[1726832639459,3.3227,150.46,150.43,20.58894679]
[1726832639963,3.3227,150.46,150.43,23.91204679]
[1726832640865,3.3224,150.47,150.44,3.3229]
[1726832641167,6.6428,150.52,150.43,20.58894679]
[1726832641366,3.323,150.44,150.43,20.58894679]
[1726832642064,3.3229,150.45,150.43,20.58894679]
[1726832642967,6.6428,150.52,150.43,20.58894679]
[1726832643166,3.3226,150.46,150.43,23.91224679]
[1726832644268,3.3226,150.46,150.44,19.253]
[1726832645671,3.3226,150.46,150.44,15.93]
[1726832646470,3.3226,150.46,150.44,19.253]
[1726832648370,15.93,150.53,150.44,15.93]
[1726832649069,22.5722,150.53,150.43,4.65894679]
[1726832649266,6.6422,150.53,150.43,4.65894679]
[1726832649570,3.323,150.44,150.43,4.65894679]
[1726832651169,15.93,150.51,150.43,4.65894679]
[1726832651376,3.3229,150.45,150.43,4.65894679]
[1726832652274,3.3229,150.45,150.43,7.98214679]
[1726832653073,2.65,150.52,150.44,15.93]
[1726832653479,18.58,150.52,150.43,4.65894679]
[1726832653777,3.323,150.44,150.43,4.65894679]
[1726832653977,3.323,150.44,150.43,3.31804679]
[1726832654280,3.3233,150.43,150.42,15.93]
[1726832654778,3.3233,150.43,150.42,19.17081676]
[1726832655773,3.3233,150.43,150.42,3.24081676]
[1726832655979,3.3235,150.42,150.4,15.93]
[1726832656175,15.93,150.48,150.39,2.5563]
[1726832656375,15.93,150.48,150.39,5.88852411]
[1726832656681,3.3239,150.4,150.39,2.5563]
[1726832657081,15.93,150.48,150.39,5.9643396]
[1726832657282,15.93,150.48,150.39,9.2884396]
[1726832657478,15.93,150.48,150.39,5.9643396]
[1726832657685,6.644,150.49,150.4,15.93]
[1726832657983,6.644,150.49,150.4,19.2538]
[1726832658178,6.644,150.49,150.4,15.93]
[1726832658378,3.3235,150.42,150.4,15.93]
[1726832658886,6.644,150.49,150.4,15.93]
[1726832660788,3.3236,150.42,150.4,15.93]
[1726832660976,22.5755,150.46,150.39,3.4080396]
[1726832661191,3.3239,150.41,150.36,15.93]
[1726832661382,22.5755,150.46,150.36,15.93]
[1726832661685,3.3241,150.4,150.37,3.3245]
[1726832662779,3.3242,150.39,150.37,3.3245]
[1726832665091,3.3248,150.36,150.35,132.94]
[1726832665283,15.93,150.41,150.35,132.94]
[1726832665880,3.3246,150.37,150.35,132.94]
[1726832667393,3.3245,150.38,150.35,132.94]
[1726832667586,1.2948,150.44,150.35,148.87]
[1726832668186,3.3244,150.38,150.34,20.648]
[1726832668583,3.3244,150.38,150.31,135.6281]
[1726832668584,15.93,150.38,150.29,3.3263]
[1726832668791,15.93,150.38,150.28,15.93]
[1726832669392,15.93,150.38,150.28,19.28849527]
[1726832669692,3.3255,150.33,150.3,3.3259]
[1726832670792,3.3255,150.33,150.29,3.3263]
[1726832671095,3.3255,150.33,150.28,19.28849527]
[1726832671482,15.93,150.38,150.29,3.3263]
[1726832672088,3.3256,150.33,150.3,3.3261]
[1726832673694,3.3256,150.33,150.3,19.2561]
[1726832676493,3.3257,150.32,150.3,3.3261]
[1726832679996,3.3257,150.32,150.29,3.3262]
[1726832680290,3.3259,150.31,150.29,3.3262]
[1726832681087,2.6586,150.37,150.28,19.28849527]
[1726832681996,2.6586,150.37,150.3,3.326]
[1726832682196,2.6586,150.37,150.28,19.28849527]
[1726832682595,2.6586,150.37,150.29,3.3262]
[1726832683090,3.3258,150.32,150.29,3.3262]
[1726832683892,3.3258,150.32,150.3,3.326]
[1726832684092,3.3256,150.33,150.28,19.28849527]
[1726832684797,3.3256,150.33,150.3,3.326]
[1726832684997,3.3258,150.32,150.3,3.326]
[1726832687197,3.3258,150.32,150.28,19.28849527]
[1726832687198,3.3263,150.3,150.28,19.28849527]
[1726832687793,3.3263,150.3,150.28,22.61499527]
[1726832687992,3.3263,150.3,150.28,6.68499527]
[1726832689404,3.3264,150.29,150.28,3.35849527]
[1726832689909,15.93,150.33,150.25,3.3271]
[1726832690094,3.3269,150.27,150.25,6.67152249]
[1726832690293,15.93,150.33,150.24,133.04]
[1726832690496,15.93,150.33,150.24,139.70440282]
[1726832690897,15.93,150.33,150.24,136.37710282]
[1726832691205,3.3272,150.26,150.24,136.37710282]
[1726832692100,3.3272,150.26,150.24,139.70460282]
[1726832692602,3.3272,150.26,150.24,6.66460282]
[1726832693403,15.93,150.33,150.24,3.33710282]
[1726832693604,15.93,150.33,150.23,15.93]
[1726832694004,3.3267,150.28,150.25,3.3271]
[1726832694407,3.3269,150.27,150.25,3.3271]
[1726832695207,3.3266,150.28,150.23,19.30504047]
[1726832695598,3.3266,150.28,150.25,3.3271]
[1726832695798,3.3268,150.27,150.25,3.3271]
[1726832697405,3.3267,150.28,150.25,3.3271]
[1726832697607,15.93,150.33,150.25,3.3271]
[1726832697800,3.3269,150.27,150.24,3.3274]
[1726832698001,10.22,150.29,150.24,13.5474]
[1726832698708,10.22,150.28,150.23,16.92274047]
[1726832699202,10.22,150.28,150.23,6.70274047]
[1726832701502,3.3272,150.26,150.23,6.70274047]